{"text_format":"1","workbook":"xlsx","n_sheets":2,"sheets":["data","All_Data"],"not_rendered":{"charts":0,"images":7,"macros":1,"external_links":0,"defined_names":2,"comments":0,"pivot_tables":0},"unopened":[],"bounds":{"document_bytes":16777216,"sheet_cells":100000,"rows_first":2000,"rows_last":500,"rows_between":2000,"halvings":0,"cell_chars":16384,"cell_head_chars":4096},"cells_cut":0,"cells_raw":0,"read":"whole","date_system":"1900"}

{"sheet":"data","index":0,"n_rows":28,"n_cols":12,"rows_kept":28,"cut":false,"hidden":false,"merged":[[28,3,28,7],[27,9,27,10],[27,1,27,7],[3,1,3,11],[1,1,1,11],[27,11,27,12]]}
[]
[null,"قسم الحركة"]
[]
[null,"تقــرير بيانات قسم الحركة"]
[]
[]
[null,null,null,"no1",null,"كتابة الكود",null,null,null,"رقم الإقامة",null,208561110]
[]
[]
[null,"اسم الموظف 2",":",{"$f":"IFERROR(VLOOKUP(D7,Alldata[],2,0),\"0\")","v":"ابو سفيان قادر"},null,"رقم الجوال 5",":",{"$f":"IFERROR(VLOOKUP(D7,data,5,0),\"0\")","v":"0554348931"},null,"رقم الاقامة 4",":",{"$f":"IFERROR(VLOOKUP(D7,data,4,0),\"0\")","v":"عقد صيانة 806"}]
[]
[null,"الكود 1",":",{"$f":"IFERROR(VLOOKUP(D7,data,1,0),\"0\")","v":"NO1"},null,"وصف الاصل 6",":",{"$f":"IFERROR(VLOOKUP(D7,data,6,0),\"0\")","v":"نيسان / غمارة"},null,"الرقم التسلسلي 3",":",{"$f":"IFERROR(VLOOKUP(D7,data,3,0),\"0\")","v":208561110}]
[]
[null,"رقم اللوحة 9",":",{"$f":"IFERROR(VLOOKUP(D7,data,8,0),\"0\")","v":"ابيض"},null,"اللون 8",":",{"$f":"IFERROR(VLOOKUP(D7,data,8,0),\"0\")","v":"ابيض"},null,"رقم الهيكل 10",":",{"$f":"IFERROR(VLOOKUP(D7,Alldata[],10,0),\"0\")","v":"MNTDD22S7C6002418"}]
[]
[null,"انتهاء الفحص 13",":",{"$f":"IFERROR(VLOOKUP(D7,Alldata[],13,0),\"0\")","v":"26/03/1441"},null,"حالة الفحص 14",null,{"$f":"IFERROR(VLOOKUP(D7,Alldata[],14,0),\"0\")","v":"منتهي"},null,"الموديل 7",":",{"$f":"IFERROR(VLOOKUP(D7,data,7,0),\"0\")","v":2012}]
[]
[null,"انتهاء الاستمارة 15",":",{"$f":"IFERROR(VLOOKUP(D7,Alldata[],15,0),\"0\")","v":"02/02/1442"},null,"حالة الاستمارة 16",":",{"$f":"IFERROR(VLOOKUP(D7,Alldata[],16,0),\"0\")","v":"منتهي"},null,"المالك 11",":",{"$f":"IFERROR(VLOOKUP(D7,Alldata[],11,0),\"0\")","v":7009429445}]
[]
[null,"انتهاء التأمين 17",":",{"$f":"IFERROR(VLOOKUP(D7,Alldata[],17,0),\"0\")","v":"2023-02-08"},null,"حالة التأمين 18",":",{"$f":"IFERROR(VLOOKUP(D7,Alldata[],18,0),\"0\")","v":"منتهي"},null,"انتهاء التفويض 22",":",{"$f":"IFERROR(VLOOKUP(D7,Alldata[],22,0),\"0\")","v":"14-03-1445"}]
[]
[null,"انتهاء كارت التشغيل19",":",{"$f":"IFERROR(VLOOKUP(D7,Alldata[],19,0),\"0\")","v":"لا يوجد"},null,"حالة كارت التشغيل 20",":",{"$f":"IFERROR(VLOOKUP(D7,Alldata[],20,0),\"0\")","v":"منتهي"},null,"الموقع 4",":",{"$f":"IFERROR(VLOOKUP(D7,Alldata[],4,0),\"0\")","v":"عقد صيانة 806"}]
[]
[null,"مهنة الاقامة 23",":",{"$f":"IFERROR(VLOOKUP(D7,data,4,0),\"0\")","v":"عقد صيانة 806"},null,"المهنة الفعلية 24",":",{"$f":"IFERROR(VLOOKUP(D7,Alldata[],24,0),\"0\")","v":"مساح"},null,"جهاز التتبع 26",":",{"$f":"IFERROR(VLOOKUP(D7,Alldata[],26,0),\"0\")","v":"يوجد"}]
[]
[null,"ملاحظات 27",":",{"$f":"IFERROR(VLOOKUP(D7,Alldata[],27,0),\"0\")","v":0},null,"حالة الموظف 25",":",{"$f":"IFERROR(VLOOKUP(D7,Alldata[],25,0),\"0\")","v":"على الكفالة"},null,"رخصة القيادة 21",":",{"$f":"IFERROR(VLOOKUP(D7,Alldata[],21,0),\"0\")","v":"خاصة"}]
[]
[null,null,null,null,null,null,null,null,null,"اعتماد مسئول الحركة :"]

{"sheet":"All_Data","index":1,"n_rows":149,"n_cols":52,"rows_kept":149,"cut":false,"hidden":false,"merged":[[1,0,1,6],[1,10,1,27]]}
[]
["بيانات السيارات",null,null,null,null,null,null,null,null,null,{"$f":"TODAY()","v":"2022-10-24"}]
[null,1,2,3,4,5,6,7,8,9,10,11,12,13,14,15,16,17,18,19,20,21,22,23,24,25,26,27]
[null,"كود المعدة","اسم المستلم","الرقم التسلسلي","الموقع","رقم الجوال","وصف الاصل","الموديل","اللون","رقم اللوحة","رقم الهيكل","المالك","الترخيص","انتهاء الفحص","حالة الفحص","انتهاء الاستمارة","حالة الاستمارة","انتهاء التأمين","حالة التأمين","انتهاء كارت التشغيل","حالة كارت التشغيل","رخصة القيادة","انتهاء التفويض","مهنة الاقامة","المهنة الفعلية","حالة الموظف","جهاز التتبع","ملاحظات",null,null,null,null,null,null,null,null,null,null,null,null,null,null,"الفحص ميلادي","المتبقي على الفحص","الاستمارة ميلادي","المتبقي على الاستمارة","التأمين ميلادي","المتبقي على التأمين","الرخصة ميلادي","المتبقي على رخصة القيادة","التفويض ميلادي","المتبقي على التفويض"]
[null,"NO1","ابو سفيان قادر",208561110,"عقد صيانة 806","0554348931","نيسان / غمارة",2012,"ابيض","ا ك ك  1293","MNTDD22S7C6002418",7009429445,"نقل خاص","26/03/1441",{"$f":"IF(BF3<1,\"منتهي\",IF(BF3<30,\"تجديد\",IF(BF3=\"\",\"\",\"ساري\")))","v":"منتهي"},"02/02/1442",{"$f":"IF(BG3<1,\"منتهي\",IF(BG3<30,\"تجديد\",IF(BG3=\"\",\"\",\"ساري\")))","v":"منتهي"},"2023-02-08",{"$f":"IFERROR(IF(BH3<1,\"منتهي\",IF(BH3<30,\"تجديد\",\"ساري\")),\"\")","v":"منتهي"},"لا يوجد",{"$f":"IFERROR(IF(BH3<1,\"منتهي\",IF(BH3<30,\"تجديد\",\"ساري\")),\"\")","v":"منتهي"},"خاصة","14-03-1445","مساح","مساح","على الكفالة","يوجد",null,null,null,null,null,null,null,null,null,null,null,null,null,null,null,{"$f":"ConvertDate(N5)","v":"23/11/2019"},{"$f":"K2-AS5","v":765},{"$f":"ConvertDate(P5)","v":"19/09/2020"},"",{"$f":"ConvertDate(R5)","v":"07/06/2584"},"",null,"",{"$f":"ConvertDate(W5)","v":"28/09/2023"},""]
[null,null,null,null,null,null,null,null,null,null,null,null,null,null,"منتهي",null,"منتهي",null,"منتهي",null,"منتهي",null,null,null,null,null,null,null,null,null,null,null,null,null,null,null,null,null,null,null,null,null,{"$f":"ConvertDate(N6)","v":{"$error":"#VALUE!"}},{"$f":"K3-AS6","v":{"$error":"#VALUE!"}},{"$f":"ConvertDate(P6)","v":{"$error":"#VALUE!"}},"",{"$f":"ConvertDate(R6)","v":{"$error":"#VALUE!"}},"",null,"",{"$f":"ConvertDate(W6)","v":{"$error":"#VALUE!"}},""]
[null,null,null,null,null,null,null,null,null,null,null,null,null,null,"منتهي",null,"منتهي",null,"منتهي",null,"منتهي",null,null,null,null,null,null,null,null,null,null,null,null,null,null,null,null,null,null,null,null,null,{"$f":"ConvertDate(N7)","v":{"$error":"#VALUE!"}},{"$error":"#VALUE!"},{"$f":"ConvertDate(P7)","v":{"$error":"#VALUE!"}},"",{"$f":"ConvertDate(R7)","v":{"$error":"#VALUE!"}},"",null,"",{"$f":"ConvertDate(W7)","v":{"$error":"#VALUE!"}},""]
[null,null,null,null,null,null,null,null,null,null,null,null,null,null,"منتهي",null,"منتهي",null,"منتهي",null,"منتهي",null,null,null,null,null,null,null,null,null,null,null,null,null,null,null,null,null,null,null,null,null,{"$f":"ConvertDate(N8)","v":{"$error":"#VALUE!"}},{"$error":"#VALUE!"},{"$f":"ConvertDate(P8)","v":{"$error":"#VALUE!"}},"",{"$f":"ConvertDate(R8)","v":{"$error":"#VALUE!"}},"",null,"",{"$f":"ConvertDate(W8)","v":{"$error":"#VALUE!"}},""]
[null,null,null,null,null,null,null,null,null,null,null,null,null,null,"منتهي",null,"منتهي",null,"منتهي",null,"منتهي",null,null,null,null,null,null,null,null,null,null,null,null,null,null,null,null,null,null,null,null,null,{"$f":"ConvertDate(N9)","v":{"$error":"#VALUE!"}},{"$error":"#VALUE!"},{"$f":"ConvertDate(P9)","v":{"$error":"#VALUE!"}},"",{"$f":"ConvertDate(R9)","v":{"$error":"#VALUE!"}},"",null,"",{"$f":"ConvertDate(W9)","v":{"$error":"#VALUE!"}},""]
[null,null,null,null,null,null,null,null,null,null,null,null,null,null,"منتهي",null,"منتهي",null,"منتهي",null,"منتهي",null,null,null,null,null,null,null,null,null,null,null,null,null,null,null,null,null,null,null,null,null,{"$f":"ConvertDate(N10)","v":{"$error":"#VALUE!"}},{"$error":"#VALUE!"},{"$f":"ConvertDate(P10)","v":{"$error":"#VALUE!"}},"",{"$f":"ConvertDate(R10)","v":{"$error":"#VALUE!"}},"",null,"",{"$f":"ConvertDate(W10)","v":{"$error":"#VALUE!"}},""]
[null,null,null,null,null,null,null,null,null,null,null,null,null,null,"منتهي",null,"منتهي",null,"منتهي",null,"منتهي",null,null,null,null,null,null,null,null,null,null,null,null,null,null,null,null,null,null,null,null,null,{"$f":"ConvertDate(N11)","v":{"$error":"#VALUE!"}},{"$error":"#VALUE!"},{"$f":"ConvertDate(P11)","v":{"$error":"#VALUE!"}},"",{"$f":"ConvertDate(R11)","v":{"$error":"#VALUE!"}},"",null,"",{"$f":"ConvertDate(W11)","v":{"$error":"#VALUE!"}},""]
[null,null,null,null,null,null,null,null,null,null,null,null,null,null,"منتهي",null,"منتهي",null,"منتهي",null,"منتهي",null,null,null,null,null,null,null,null,null,null,null,null,null,null,null,null,null,null,null,null,null,{"$f":"ConvertDate(N12)","v":{"$error":"#VALUE!"}},{"$error":"#VALUE!"},{"$f":"ConvertDate(P12)","v":{"$error":"#VALUE!"}},"",{"$f":"ConvertDate(R12)","v":{"$error":"#VALUE!"}},"",null,"",{"$f":"ConvertDate(W12)","v":{"$error":"#VALUE!"}},""]
[null,null,null,null,null,null,null,null,null,null,null,null,null,null,"منتهي",null,"منتهي",null,"منتهي",null,"منتهي",null,null,null,null,null,null,null,null,null,null,null,null,null,null,null,null,null,null,null,null,null,{"$f":"ConvertDate(N13)","v":{"$error":"#VALUE!"}},{"$error":"#VALUE!"},{"$f":"ConvertDate(P13)","v":{"$error":"#VALUE!"}},"",{"$f":"ConvertDate(R13)","v":{"$error":"#VALUE!"}},"",null,"",{"$f":"ConvertDate(W13)","v":{"$error":"#VALUE!"}},""]
[null,null,null,null,null,null,null,null,null,null,null,null,null,null,"منتهي",null,"منتهي",null,"منتهي",null,"منتهي",null,null,null,null,null,null,null,null,null,null,null,null,null,null,null,null,null,null,null,null,null,{"$f":"ConvertDate(N14)","v":{"$error":"#VALUE!"}},{"$error":"#VALUE!"},{"$f":"ConvertDate(P14)","v":{"$error":"#VALUE!"}},"",{"$f":"ConvertDate(R14)","v":{"$error":"#VALUE!"}},"",null,"",{"$f":"ConvertDate(W14)","v":{"$error":"#VALUE!"}},""]
[null,null,null,null,null,null,null,null,null,null,null,null,null,null,"منتهي",null,"منتهي",null,"منتهي",null,"منتهي",null,null,null,null,null,null,null,null,null,null,null,null,null,null,null,null,null,null,null,null,null,{"$f":"ConvertDate(N15)","v":{"$error":"#VALUE!"}},{"$error":"#VALUE!"},{"$f":"ConvertDate(P15)","v":{"$error":"#VALUE!"}},"",{"$f":"ConvertDate(R15)","v":{"$error":"#VALUE!"}},"",null,"",{"$f":"ConvertDate(W15)","v":{"$error":"#VALUE!"}},""]
[null,null,null,null,null,null,null,null,null,null,null,null,null,null,"منتهي",null,"منتهي",null,"منتهي",null,"منتهي",null,null,null,null,null,null,null,null,null,null,null,null,null,null,null,null,null,null,null,null,null,{"$f":"ConvertDate(N16)","v":{"$error":"#VALUE!"}},{"$error":"#VALUE!"},{"$f":"ConvertDate(P16)","v":{"$error":"#VALUE!"}},"",{"$f":"ConvertDate(R16)","v":{"$error":"#VALUE!"}},"",null,"",{"$f":"ConvertDate(W16)","v":{"$error":"#VALUE!"}},""]
[null,null,null,null,null,null,null,null,null,null,null,null,null,null,"منتهي",null,"منتهي",null,"منتهي",null,"منتهي",null,null,null,null,null,null,null,null,null,null,null,null,null,null,null,null,null,null,null,null,null,{"$f":"ConvertDate(N17)","v":{"$error":"#VALUE!"}},{"$error":"#VALUE!"},{"$f":"ConvertDate(P17)","v":{"$error":"#VALUE!"}},"",{"$f":"ConvertDate(R17)","v":{"$error":"#VALUE!"}},"",null,"",{"$f":"ConvertDate(W17)","v":{"$error":"#VALUE!"}},""]
[null,null,null,null,null,null,null,null,null,null,null,null,null,null,"منتهي",null,"منتهي",null,"منتهي",null,"منتهي",null,null,null,null,null,null,null,null,null,null,null,null,null,null,null,null,null,null,null,null,null,{"$f":"ConvertDate(N18)","v":{"$error":"#VALUE!"}},{"$error":"#VALUE!"},{"$f":"ConvertDate(P18)","v":{"$error":"#VALUE!"}},"",{"$f":"ConvertDate(R18)","v":{"$error":"#VALUE!"}},"",null,"",{"$f":"ConvertDate(W18)","v":{"$error":"#VALUE!"}},""]
[null,null,null,null,null,null,null,null,null,null,null,null,null,null,"منتهي",null,"منتهي",null,"منتهي",null,"منتهي",null,null,null,null,null,null,null,null,null,null,null,null,null,null,null,null,null,null,null,null,null,{"$f":"ConvertDate(N19)","v":{"$error":"#VALUE!"}},{"$error":"#VALUE!"},{"$f":"ConvertDate(P19)","v":{"$error":"#VALUE!"}},"",{"$f":"ConvertDate(R19)","v":{"$error":"#VALUE!"}},"",null,"",{"$f":"ConvertDate(W19)","v":{"$error":"#VALUE!"}},""]
[null,null,null,null,null,null,null,null,null,null,null,null,null,null,"منتهي",null,"منتهي",null,"منتهي",null,"منتهي",null,null,null,null,null,null,null,null,null,null,null,null,null,null,null,null,null,null,null,null,null,{"$f":"ConvertDate(N20)","v":{"$error":"#VALUE!"}},{"$error":"#VALUE!"},{"$f":"ConvertDate(P20)","v":{"$error":"#VALUE!"}},"",{"$f":"ConvertDate(R20)","v":{"$error":"#VALUE!"}},"",null,"",{"$f":"ConvertDate(W20)","v":{"$error":"#VALUE!"}},""]
[null,null,null,null,null,null,null,null,null,null,null,null,null,null,"منتهي",null,"منتهي",null,"منتهي",null,"منتهي",null,null,null,null,null,null,null,null,null,null,null,null,null,null,null,null,null,null,null,null,null,{"$f":"ConvertDate(N21)","v":{"$error":"#VALUE!"}},{"$error":"#VALUE!"},{"$f":"ConvertDate(P21)","v":{"$error":"#VALUE!"}},"",{"$f":"ConvertDate(R21)","v":{"$error":"#VALUE!"}},"",null,"",{"$f":"ConvertDate(W21)","v":{"$error":"#VALUE!"}},""]
[null,null,null,null,null,null,null,null,null,null,null,null,null,null,"منتهي",null,"منتهي",null,"منتهي",null,"منتهي",null,null,null,null,null,null,null,null,null,null,null,null,null,null,null,null,null,null,null,null,null,{"$f":"ConvertDate(N22)","v":{"$error":"#VALUE!"}},{"$error":"#VALUE!"},{"$f":"ConvertDate(P22)","v":{"$error":"#VALUE!"}},"",{"$f":"ConvertDate(R22)","v":{"$error":"#VALUE!"}},"",null,"",{"$f":"ConvertDate(W22)","v":{"$error":"#VALUE!"}},""]
[null,null,null,null,null,null,null,null,null,null,null,null,null,null,"منتهي",null,"منتهي",null,"منتهي",null,"منتهي",null,null,null,null,null,null,null,null,null,null,null,null,null,null,null,null,null,null,null,null,null,{"$f":"ConvertDate(N23)","v":{"$error":"#VALUE!"}},{"$error":"#VALUE!"},{"$f":"ConvertDate(P23)","v":{"$error":"#VALUE!"}},"",{"$f":"ConvertDate(R23)","v":{"$error":"#VALUE!"}},"",null,"",{"$f":"ConvertDate(W23)","v":{"$error":"#VALUE!"}},""]
[null,null,null,null,null,null,null,null,null,null,null,null,null,null,"منتهي",null,"منتهي",null,"منتهي",null,"منتهي",null,null,null,null,null,null,null,null,null,null,null,null,null,null,null,null,null,null,null,null,null,{"$f":"ConvertDate(N24)","v":{"$error":"#VALUE!"}},{"$error":"#VALUE!"},{"$f":"ConvertDate(P24)","v":{"$error":"#VALUE!"}},"",{"$f":"ConvertDate(R24)","v":{"$error":"#VALUE!"}},"",null,"",{"$f":"ConvertDate(W24)","v":{"$error":"#VALUE!"}},""]
[null,null,null,null,null,null,null,null,null,null,null,null,null,null,"منتهي",null,"منتهي",null,"منتهي",null,"منتهي",null,null,null,null,null,null,null,null,null,null,null,null,null,null,null,null,null,null,null,null,null,{"$f":"ConvertDate(N25)","v":{"$error":"#VALUE!"}},{"$error":"#VALUE!"},{"$f":"ConvertDate(P25)","v":{"$error":"#VALUE!"}},"",{"$f":"ConvertDate(R25)","v":{"$error":"#VALUE!"}},"",null,"",{"$f":"ConvertDate(W25)","v":{"$error":"#VALUE!"}},""]
[null,null,null,null,null,null,null,null,null,null,null,null,null,null,"منتهي",null,"منتهي",null,"منتهي",null,"منتهي",null,null,null,null,null,null,null,null,null,null,null,null,null,null,null,null,null,null,null,null,null,{"$f":"ConvertDate(N26)","v":{"$error":"#VALUE!"}},{"$error":"#VALUE!"},{"$f":"ConvertDate(P26)","v":{"$error":"#VALUE!"}},"",{"$f":"ConvertDate(R26)","v":{"$error":"#VALUE!"}},"",null,"",{"$f":"ConvertDate(W26)","v":{"$error":"#VALUE!"}},""]
[null,null,null,null,null,null,null,null,null,null,null,null,null,null,"منتهي",null,"منتهي",null,"منتهي",null,"منتهي",null,null,null,null,null,null,null,null,null,null,null,null,null,null,null,null,null,null,null,null,null,{"$f":"ConvertDate(N27)","v":{"$error":"#VALUE!"}},{"$error":"#VALUE!"},{"$f":"ConvertDate(P27)","v":{"$error":"#VALUE!"}},"",{"$f":"ConvertDate(R27)","v":{"$error":"#VALUE!"}},"",null,"",{"$f":"ConvertDate(W27)","v":{"$error":"#VALUE!"}},""]
[null,null,null,null,null,null,null,null,null,null,null,null,null,null,"منتهي",null,"منتهي",null,"منتهي",null,"منتهي",null,null,null,null,null,null,null,null,null,null,null,null,null,null,null,null,null,null,null,null,null,{"$f":"ConvertDate(N28)","v":{"$error":"#VALUE!"}},{"$error":"#VALUE!"},{"$f":"ConvertDate(P28)","v":{"$error":"#VALUE!"}},"",{"$f":"ConvertDate(R28)","v":{"$error":"#VALUE!"}},"",null,"",{"$f":"ConvertDate(W28)","v":{"$error":"#VALUE!"}},""]
[null,null,null,null,null,null,null,null,null,null,null,null,null,null,"منتهي",null,"منتهي",null,"منتهي",null,"منتهي",null,null,null,null,null,null,null,null,null,null,null,null,null,null,null,null,null,null,null,null,null,{"$f":"ConvertDate(N29)","v":{"$error":"#VALUE!"}},{"$error":"#VALUE!"},{"$f":"ConvertDate(P29)","v":{"$error":"#VALUE!"}},"",{"$f":"ConvertDate(R29)","v":{"$error":"#VALUE!"}},"",null,"",{"$f":"ConvertDate(W29)","v":{"$error":"#VALUE!"}},""]
[null,null,null,null,null,null,null,null,null,null,null,null,null,null,"منتهي",null,"منتهي",null,"منتهي",null,"منتهي",null,null,null,null,null,null,null,null,null,null,null,null,null,null,null,null,null,null,null,null,null,{"$f":"ConvertDate(N30)","v":{"$error":"#VALUE!"}},{"$error":"#VALUE!"},{"$f":"ConvertDate(P30)","v":{"$error":"#VALUE!"}},"",{"$f":"ConvertDate(R30)","v":{"$error":"#VALUE!"}},"",null,"",{"$f":"ConvertDate(W30)","v":{"$error":"#VALUE!"}},""]
[null,null,null,null,null,null,null,null,null,null,null,null,null,null,"منتهي",null,"منتهي",null,"منتهي",null,"منتهي",null,null,null,null,null,null,null,null,null,null,null,null,null,null,null,null,null,null,null,null,null,{"$f":"ConvertDate(N31)","v":{"$error":"#VALUE!"}},{"$error":"#VALUE!"},{"$f":"ConvertDate(P31)","v":{"$error":"#VALUE!"}},"",{"$f":"ConvertDate(R31)","v":{"$error":"#VALUE!"}},"",null,"",{"$f":"ConvertDate(W31)","v":{"$error":"#VALUE!"}},""]
[null,null,null,null,null,null,null,null,null,null,null,null,null,null,"منتهي",null,"منتهي",null,"منتهي",null,"منتهي",null,null,null,null,null,null,null,null,null,null,null,null,null,null,null,null,null,null,null,null,null,{"$f":"ConvertDate(N32)","v":{"$error":"#VALUE!"}},{"$error":"#VALUE!"},{"$f":"ConvertDate(P32)","v":{"$error":"#VALUE!"}},"",{"$f":"ConvertDate(R32)","v":{"$error":"#VALUE!"}},"",null,"",{"$f":"ConvertDate(W32)","v":{"$error":"#VALUE!"}},""]
[null,null,null,null,null,null,null,null,null,null,null,null,null,null,"منتهي",null,"منتهي",null,"منتهي",null,"منتهي",null,null,null,null,null,null,null,null,null,null,null,null,null,null,null,null,null,null,null,null,null,{"$f":"ConvertDate(N33)","v":{"$error":"#VALUE!"}},{"$error":"#VALUE!"},{"$f":"ConvertDate(P33)","v":{"$error":"#VALUE!"}},"",{"$f":"ConvertDate(R33)","v":{"$error":"#VALUE!"}},"",null,"",{"$f":"ConvertDate(W33)","v":{"$error":"#VALUE!"}},""]
[null,null,null,null,null,null,null,null,null,null,null,null,null,null,"منتهي",null,"منتهي",null,"منتهي",null,"منتهي",null,null,null,null,null,null,null,null,null,null,null,null,null,null,null,null,null,null,null,null,null,{"$f":"ConvertDate(N34)","v":{"$error":"#VALUE!"}},{"$error":"#VALUE!"},{"$f":"ConvertDate(P34)","v":{"$error":"#VALUE!"}},"",{"$f":"ConvertDate(R34)","v":{"$error":"#VALUE!"}},"",null,"",{"$f":"ConvertDate(W34)","v":{"$error":"#VALUE!"}},""]
[null,null,null,null,null,null,null,null,null,null,null,null,null,null,"منتهي",null,"منتهي",null,"منتهي",null,"منتهي",null,null,null,null,null,null,null,null,null,null,null,null,null,null,null,null,null,null,null,null,null,{"$f":"ConvertDate(N35)","v":{"$error":"#VALUE!"}},{"$error":"#VALUE!"},{"$f":"ConvertDate(P35)","v":{"$error":"#VALUE!"}},"",{"$f":"ConvertDate(R35)","v":{"$error":"#VALUE!"}},"",null,"",{"$f":"ConvertDate(W35)","v":{"$error":"#VALUE!"}},""]
[null,null,null,null,null,null,null,null,null,null,null,null,null,null,"منتهي",null,"منتهي",null,"منتهي",null,"منتهي",null,null,null,null,null,null,null,null,null,null,null,null,null,null,null,null,null,null,null,null,null,{"$f":"ConvertDate(N36)","v":{"$error":"#VALUE!"}},{"$error":"#VALUE!"},{"$f":"ConvertDate(P36)","v":{"$error":"#VALUE!"}},"",{"$f":"ConvertDate(R36)","v":{"$error":"#VALUE!"}},"",null,"",{"$f":"ConvertDate(W36)","v":{"$error":"#VALUE!"}},""]
[null,null,null,null,null,null,null,null,null,null,null,null,null,null,{"$f":"IF(BF35<1,\"منتهي\",IF(BF35<30,\"تجديد\",IF(BF35=\"\",\"\",\"ساري\")))","v":"منتهي"},null,{"$f":"IF(BG35<1,\"منتهي\",IF(BG35<30,\"تجديد\",IF(BG35=\"\",\"\",\"ساري\")))","v":"منتهي"},null,{"$f":"IFERROR(IF(BH35<1,\"منتهي\",IF(BH35<30,\"تجديد\",\"ساري\")),\"\")","v":"منتهي"},null,{"$f":"IFERROR(IF(BH35<1,\"منتهي\",IF(BH35<30,\"تجديد\",\"ساري\")),\"\")","v":"منتهي"},null,null,null,null,null,null,null,null,null,null,null,null,null,null,null,null,null,null,null,null,null,{"$f":"ConvertDate(N37)","v":{"$error":"#VALUE!"}},{"$error":"#VALUE!"},{"$f":"ConvertDate(P37)","v":{"$error":"#VALUE!"}},"",{"$f":"ConvertDate(R37)","v":{"$error":"#VALUE!"}},"",null,"",{"$f":"ConvertDate(W37)","v":{"$error":"#VALUE!"}},""]
[null,null,null,null,null,null,null,null,null,null,null,null,null,null,"منتهي",null,"منتهي",null,"منتهي",null,"منتهي",null,null,null,null,null,null,null,null,null,null,null,null,null,null,null,null,null,null,null,null,null,{"$f":"ConvertDate(N38)","v":{"$error":"#VALUE!"}},{"$error":"#VALUE!"},{"$f":"ConvertDate(P38)","v":{"$error":"#VALUE!"}},"",{"$f":"ConvertDate(R38)","v":{"$error":"#VALUE!"}},"",null,"",{"$f":"ConvertDate(W38)","v":{"$error":"#VALUE!"}},""]
[null,null,null,null,null,null,null,null,null,null,null,null,null,null,"منتهي",null,"منتهي",null,"منتهي",null,"منتهي",null,null,null,null,null,null,null,null,null,null,null,null,null,null,null,null,null,null,null,null,null,{"$f":"ConvertDate(N39)","v":{"$error":"#VALUE!"}},{"$error":"#VALUE!"},{"$f":"ConvertDate(P39)","v":{"$error":"#VALUE!"}},"",{"$f":"ConvertDate(R39)","v":{"$error":"#VALUE!"}},"",null,"",{"$f":"ConvertDate(W39)","v":{"$error":"#VALUE!"}},""]
[null,null,null,null,null,null,null,null,null,null,null,null,null,null,"منتهي",null,"منتهي",null,"منتهي",null,"منتهي",null,null,null,null,null,null,null,null,null,null,null,null,null,null,null,null,null,null,null,null,null,{"$f":"ConvertDate(N40)","v":{"$error":"#VALUE!"}},{"$error":"#VALUE!"},{"$f":"ConvertDate(P40)","v":{"$error":"#VALUE!"}},"",{"$f":"ConvertDate(R40)","v":{"$error":"#VALUE!"}},"",null,"",{"$f":"ConvertDate(W40)","v":{"$error":"#VALUE!"}},""]
[null,null,null,null,null,null,null,null,null,null,null,null,null,null,"منتهي",null,"منتهي",null,"منتهي",null,"منتهي",null,null,null,null,null,null,null,null,null,null,null,null,null,null,null,null,null,null,null,null,null,{"$f":"ConvertDate(N41)","v":{"$error":"#VALUE!"}},{"$error":"#VALUE!"},{"$f":"ConvertDate(P41)","v":{"$error":"#VALUE!"}},"",{"$f":"ConvertDate(R41)","v":{"$error":"#VALUE!"}},"",null,"",{"$f":"ConvertDate(W41)","v":{"$error":"#VALUE!"}},""]
[null,null,null,null,null,null,null,null,null,null,null,null,null,null,"منتهي",null,"منتهي",null,"منتهي",null,"منتهي",null,null,null,null,null,null,null,null,null,null,null,null,null,null,null,null,null,null,null,null,null,{"$f":"ConvertDate(N42)","v":{"$error":"#VALUE!"}},{"$error":"#VALUE!"},{"$f":"ConvertDate(P42)","v":{"$error":"#VALUE!"}},"",{"$f":"ConvertDate(R42)","v":{"$error":"#VALUE!"}},"",null,"",{"$f":"ConvertDate(W42)","v":{"$error":"#VALUE!"}},""]
[null,null,null,null,null,null,null,null,null,null,null,null,null,null,"منتهي",null,"منتهي",null,"منتهي",null,"منتهي",null,null,null,null,null,null,null,null,null,null,null,null,null,null,null,null,null,null,null,null,null,{"$f":"ConvertDate(N43)","v":{"$error":"#VALUE!"}},{"$error":"#VALUE!"},{"$f":"ConvertDate(P43)","v":{"$error":"#VALUE!"}},"",{"$f":"ConvertDate(R43)","v":{"$error":"#VALUE!"}},"",null,"",{"$f":"ConvertDate(W43)","v":{"$error":"#VALUE!"}},""]
[null,null,null,null,null,null,null,null,null,null,null,null,null,null,"منتهي",null,"منتهي",null,"منتهي",null,"منتهي",null,null,null,null,null,null,null,null,null,null,null,null,null,null,null,null,null,null,null,null,null,{"$f":"ConvertDate(N44)","v":{"$error":"#VALUE!"}},{"$error":"#VALUE!"},{"$f":"ConvertDate(P44)","v":{"$error":"#VALUE!"}},"",{"$f":"ConvertDate(R44)","v":{"$error":"#VALUE!"}},"",null,"",{"$f":"ConvertDate(W44)","v":{"$error":"#VALUE!"}},""]
[null,null,null,null,null,null,null,null,null,null,null,null,null,null,"منتهي",null,"منتهي",null,"منتهي",null,"منتهي",null,null,null,null,null,null,null,null,null,null,null,null,null,null,null,null,null,null,null,null,null,{"$f":"ConvertDate(N45)","v":{"$error":"#VALUE!"}},{"$error":"#VALUE!"},{"$f":"ConvertDate(P45)","v":{"$error":"#VALUE!"}},"",{"$f":"ConvertDate(R45)","v":{"$error":"#VALUE!"}},"",null,"",{"$f":"ConvertDate(W45)","v":{"$error":"#VALUE!"}},""]
[null,null,null,null,null,null,null,null,null,null,null,null,null,null,"منتهي",null,"منتهي",null,"منتهي",null,"منتهي",null,null,null,null,null,null,null,null,null,null,null,null,null,null,null,null,null,null,null,null,null,{"$f":"ConvertDate(N46)","v":{"$error":"#VALUE!"}},{"$error":"#VALUE!"},{"$f":"ConvertDate(P46)","v":{"$error":"#VALUE!"}},"",{"$f":"ConvertDate(R46)","v":{"$error":"#VALUE!"}},"",null,"",{"$f":"ConvertDate(W46)","v":{"$error":"#VALUE!"}},""]
[null,null,null,null,null,null,null,null,null,null,null,null,null,null,"منتهي",null,"منتهي",null,"منتهي",null,"منتهي",null,null,null,null,null,null,null,null,null,null,null,null,null,null,null,null,null,null,null,null,null,{"$f":"ConvertDate(N47)","v":{"$error":"#VALUE!"}},{"$error":"#VALUE!"},{"$f":"ConvertDate(P47)","v":{"$error":"#VALUE!"}},"",{"$f":"ConvertDate(R47)","v":{"$error":"#VALUE!"}},"",null,"",{"$f":"ConvertDate(W47)","v":{"$error":"#VALUE!"}},""]
[null,null,null,null,null,null,null,null,null,null,null,null,null,null,"منتهي",null,"منتهي",null,"منتهي",null,"منتهي",null,null,null,null,null,null,null,null,null,null,null,null,null,null,null,null,null,null,null,null,null,{"$f":"ConvertDate(N48)","v":{"$error":"#VALUE!"}},{"$error":"#VALUE!"},{"$f":"ConvertDate(P48)","v":{"$error":"#VALUE!"}},"",{"$f":"ConvertDate(R48)","v":{"$error":"#VALUE!"}},"",null,"",{"$f":"ConvertDate(W48)","v":{"$error":"#VALUE!"}},""]
[null,null,null,null,null,null,null,null,null,null,null,null,null,null,"منتهي",null,"منتهي",null,"منتهي",null,"منتهي",null,null,null,null,null,null,null,null,null,null,null,null,null,null,null,null,null,null,null,null,null,{"$f":"ConvertDate(N49)","v":{"$error":"#VALUE!"}},{"$error":"#VALUE!"},{"$f":"ConvertDate(P49)","v":{"$error":"#VALUE!"}},"",{"$f":"ConvertDate(R49)","v":{"$error":"#VALUE!"}},"",null,"",{"$f":"ConvertDate(W49)","v":{"$error":"#VALUE!"}},""]
[null,null,null,null,null,null,null,null,null,null,null,null,null,null,"منتهي",null,"منتهي",null,"منتهي",null,"منتهي",null,null,null,null,null,null,null,null,null,null,null,null,null,null,null,null,null,null,null,null,null,null,{"$error":"#VALUE!"},{"$f":"ConvertDate(P50)","v":{"$error":"#VALUE!"}},"",{"$f":"ConvertDate(R50)","v":{"$error":"#VALUE!"}},"",null,"",{"$f":"ConvertDate(W50)","v":{"$error":"#VALUE!"}},""]
[null,null,null,null,null,null,null,null,null,null,null,null,null,null,"منتهي",null,"منتهي",null,"منتهي",null,"منتهي",null,null,null,null,null,null,null,null,null,null,null,null,null,null,null,null,null,null,null,null,null,null,{"$error":"#VALUE!"},{"$f":"ConvertDate(P51)","v":{"$error":"#VALUE!"}},"",{"$f":"ConvertDate(R51)","v":{"$error":"#VALUE!"}},"",null,"",{"$f":"ConvertDate(W51)","v":{"$error":"#VALUE!"}},""]
[null,null,null,null,null,null,null,null,null,null,null,null,null,null,"منتهي",null,"منتهي",null,"منتهي",null,"منتهي"]
[null,null,null,null,null,null,null,null,null,null,null,null,null,null,"منتهي",null,"منتهي",null,"منتهي",null,"منتهي"]
[null,null,null,null,null,null,null,null,null,null,null,null,null,null,"منتهي",null,"منتهي",null,"منتهي",null,"منتهي"]
[null,null,null,null,null,null,null,null,null,null,null,null,null,null,"منتهي",null,"منتهي",null,"منتهي",null,"منتهي"]
[null,null,null,null,null,null,null,null,null,null,null,null,null,null,"منتهي",null,"منتهي",null,"منتهي",null,"منتهي"]
[null,null,null,null,null,null,null,null,null,null,null,null,null,null,"منتهي",null,"منتهي",null,"منتهي",null,"منتهي"]
[null,null,null,null,null,null,null,null,null,null,null,null,null,null,"منتهي",null,"منتهي",null,"منتهي",null,"منتهي"]
[null,null,null,null,null,null,null,null,null,null,null,null,null,null,"منتهي",null,"منتهي",null,"منتهي",null,"منتهي"]
[null,null,null,null,null,null,null,null,null,null,null,null,null,null,"منتهي",null,"منتهي",null,"منتهي",null,"منتهي"]
[null,null,null,null,null,null,null,null,null,null,null,null,null,null,"منتهي",null,"منتهي",null,"منتهي",null,"منتهي"]
[null,null,null,null,null,null,null,null,null,null,null,null,null,null,"منتهي",null,"منتهي",null,"منتهي",null,"منتهي"]
[null,null,null,null,null,null,null,null,null,null,null,null,null,null,"منتهي",null,"منتهي",null,"منتهي",null,"منتهي"]
[null,null,null,null,null,null,null,null,null,null,null,null,null,null,"منتهي",null,"منتهي",null,"منتهي",null,"منتهي"]
[null,null,null,null,null,null,null,null,null,null,null,null,null,null,"منتهي",null,"منتهي",null,"منتهي",null,"منتهي"]
[null,null,null,null,null,null,null,null,null,null,null,null,null,null,"منتهي",null,"منتهي",null,"منتهي",null,"منتهي"]
[null,null,null,null,null,null,null,null,null,null,null,null,null,null,"منتهي",null,"منتهي",null,"منتهي",null,"منتهي"]
[null,null,null,null,null,null,null,null,null,null,null,null,null,null,"منتهي",null,"منتهي",null,"منتهي",null,"منتهي"]
[null,null,null,null,null,null,null,null,null,null,null,null,null,null,{"$f":"IF(BF67<1,\"منتهي\",IF(BF67<30,\"تجديد\",IF(BF67=\"\",\"\",\"ساري\")))","v":"منتهي"},null,{"$f":"IF(BG67<1,\"منتهي\",IF(BG67<30,\"تجديد\",IF(BG67=\"\",\"\",\"ساري\")))","v":"منتهي"},null,{"$f":"IFERROR(IF(BH67<1,\"منتهي\",IF(BH67<30,\"تجديد\",\"ساري\")),\"\")","v":"منتهي"},null,{"$f":"IFERROR(IF(BH67<1,\"منتهي\",IF(BH67<30,\"تجديد\",\"ساري\")),\"\")","v":"منتهي"}]
[null,null,null,null,null,null,null,null,null,null,null,null,null,null,"منتهي",null,"منتهي",null,"منتهي",null,"منتهي"]
[null,null,null,null,null,null,null,null,null,null,null,null,null,null,"منتهي",null,"منتهي",null,"منتهي",null,"منتهي"]
[null,null,null,null,null,null,null,null,null,null,null,null,null,null,"منتهي",null,"منتهي",null,"منتهي",null,"منتهي"]
[null,null,null,null,null,null,null,null,null,null,null,null,null,null,"منتهي",null,"منتهي",null,"منتهي",null,"منتهي"]
[null,null,null,null,null,null,null,null,null,null,null,null,null,null,"منتهي",null,"منتهي",null,"منتهي",null,"منتهي"]
[null,null,null,null,null,null,null,null,null,null,null,null,null,null,"منتهي",null,"منتهي",null,"منتهي",null,"منتهي"]
[null,null,null,null,null,null,null,null,null,null,null,null,null,null,"منتهي",null,"منتهي",null,"منتهي",null,"منتهي"]
[null,null,null,null,null,null,null,null,null,null,null,null,null,null,"منتهي",null,"منتهي",null,"منتهي",null,"منتهي"]
[null,null,null,null,null,null,null,null,null,null,null,null,null,null,"منتهي",null,"منتهي",null,"منتهي",null,"منتهي"]
[null,null,null,null,null,null,null,null,null,null,null,null,null,null,"منتهي",null,"منتهي",null,"منتهي",null,"منتهي"]
[null,null,null,null,null,null,null,null,null,null,null,null,null,null,"منتهي",null,"منتهي",null,"منتهي",null,"منتهي"]
[null,null,null,null,null,null,null,null,null,null,null,null,null,null,"منتهي",null,"منتهي",null,"منتهي",null,"منتهي"]
[null,null,null,null,null,null,null,null,null,null,null,null,null,null,"منتهي",null,"منتهي",null,"منتهي",null,"منتهي"]
[null,null,null,null,null,null,null,null,null,null,null,null,null,null,"منتهي",null,"منتهي",null,"منتهي",null,"منتهي"]
[null,null,null,null,null,null,null,null,null,null,null,null,null,null,"منتهي",null,"منتهي",null,"منتهي",null,"منتهي"]
[null,null,null,null,null,null,null,null,null,null,null,null,null,null,"منتهي",null,"منتهي",null,"منتهي",null,"منتهي"]
[null,null,null,null,null,null,null,null,null,null,null,null,null,null,"منتهي",null,"منتهي",null,"منتهي",null,"منتهي"]
[null,null,null,null,null,null,null,null,null,null,null,null,null,null,"منتهي",null,"منتهي",null,"منتهي",null,"منتهي"]
[null,null,null,null,null,null,null,null,null,null,null,null,null,null,"منتهي",null,"منتهي",null,"منتهي",null,"منتهي"]
[null,null,null,null,null,null,null,null,null,null,null,null,null,null,"منتهي",null,"منتهي",null,"منتهي",null,"منتهي"]
[null,null,null,null,null,null,null,null,null,null,null,null,null,null,"منتهي",null,"منتهي",null,"منتهي",null,"منتهي"]
[null,null,null,null,null,null,null,null,null,null,null,null,null,null,"منتهي",null,"منتهي",null,"منتهي",null,"منتهي"]
[null,null,null,null,null,null,null,null,null,null,null,null,null,null,"منتهي",null,"منتهي",null,"منتهي",null,"منتهي"]
[null,null,null,null,null,null,null,null,null,null,null,null,null,null,"منتهي",null,"منتهي",null,"منتهي",null,"منتهي"]
[null,null,null,null,null,null,null,null,null,null,null,null,null,null,"منتهي",null,"منتهي",null,"منتهي",null,"منتهي"]
[null,null,null,null,null,null,null,null,null,null,null,null,null,null,"منتهي",null,"منتهي",null,"منتهي",null,"منتهي"]
[null,null,null,null,null,null,null,null,null,null,null,null,null,null,"منتهي",null,"منتهي",null,"منتهي",null,"منتهي"]
[null,null,null,null,null,null,null,null,null,null,null,null,null,null,"منتهي",null,"منتهي",null,"منتهي",null,"منتهي"]
[null,null,null,null,null,null,null,null,null,null,null,null,null,null,"منتهي",null,"منتهي",null,"منتهي",null,"منتهي"]
[null,null,null,null,null,null,null,null,null,null,null,null,null,null,"منتهي",null,"منتهي",null,"منتهي",null,"منتهي"]
[null,null,null,null,null,null,null,null,null,null,null,null,null,null,"منتهي",null,"منتهي",null,"منتهي",null,"منتهي"]
[null,null,null,null,null,null,null,null,null,null,null,null,null,null,{"$f":"IF(BF99<1,\"منتهي\",IF(BF99<30,\"تجديد\",IF(BF99=\"\",\"\",\"ساري\")))","v":"منتهي"},null,{"$f":"IF(BG99<1,\"منتهي\",IF(BG99<30,\"تجديد\",IF(BG99=\"\",\"\",\"ساري\")))","v":"منتهي"},null,{"$f":"IFERROR(IF(BH99<1,\"منتهي\",IF(BH99<30,\"تجديد\",\"ساري\")),\"\")","v":"منتهي"},null,{"$f":"IFERROR(IF(BH99<1,\"منتهي\",IF(BH99<30,\"تجديد\",\"ساري\")),\"\")","v":"منتهي"}]
[null,null,null,null,null,null,null,null,null,null,null,null,null,null,"منتهي",null,"منتهي",null,"منتهي",null,"منتهي"]
[null,null,null,null,null,null,null,null,null,null,null,null,null,null,"منتهي",null,"منتهي",null,"منتهي",null,"منتهي"]
[null,null,null,null,null,null,null,null,null,null,null,null,null,null,"منتهي",null,"منتهي",null,"منتهي",null,"منتهي"]
[null,null,null,null,null,null,null,null,null,null,null,null,null,null,"منتهي",null,"منتهي",null,"منتهي",null,"منتهي"]
[null,null,null,null,null,null,null,null,null,null,null,null,null,null,"منتهي",null,"منتهي",null,"منتهي",null,"منتهي"]
[null,null,null,null,null,null,null,null,null,null,null,null,null,null,"منتهي",null,"منتهي",null,"منتهي",null,"منتهي"]
[null,null,null,null,null,null,null,null,null,null,null,null,null,null,"منتهي",null,"منتهي",null,"منتهي",null,"منتهي"]
[null,null,null,null,null,null,null,null,null,null,null,null,null,null,"منتهي",null,"منتهي",null,"منتهي",null,"منتهي"]
[null,null,null,null,null,null,null,null,null,null,null,null,null,null,"منتهي",null,"منتهي",null,"منتهي",null,"منتهي"]
[null,null,null,null,null,null,null,null,null,null,null,null,null,null,"منتهي",null,"منتهي",null,"منتهي",null,"منتهي"]
[null,null,null,null,null,null,null,null,null,null,null,null,null,null,"منتهي",null,"منتهي",null,"منتهي",null,"منتهي"]
[null,null,null,null,null,null,null,null,null,null,null,null,null,null,"منتهي",null,"منتهي",null,"منتهي",null,"منتهي"]
[null,null,null,null,null,null,null,null,null,null,null,null,null,null,"منتهي",null,"منتهي",null,"منتهي",null,"منتهي"]
[null,null,null,null,null,null,null,null,null,null,null,null,null,null,"منتهي",null,"منتهي",null,"منتهي",null,"منتهي"]
[null,null,null,null,null,null,null,null,null,null,null,null,null,null,"منتهي",null,"منتهي",null,"منتهي",null,"منتهي"]
[null,null,null,null,null,null,null,null,null,null,null,null,null,null,"منتهي",null,"منتهي",null,"منتهي",null,"منتهي"]
[null,null,null,null,null,null,null,null,null,null,null,null,null,null,"منتهي",null,"منتهي",null,"منتهي",null,"منتهي"]
[null,null,null,null,null,null,null,null,null,null,null,null,null,null,"منتهي",null,"منتهي",null,"منتهي",null,"منتهي"]
[null,null,null,null,null,null,null,null,null,null,null,null,null,null,"منتهي",null,"منتهي",null,"منتهي",null,"منتهي"]
[null,null,null,null,null,null,null,null,null,null,null,null,null,null,"منتهي",null,"منتهي",null,"منتهي",null,"منتهي"]
[null,null,null,null,null,null,null,null,null,null,null,null,null,null,"منتهي",null,"منتهي",null,"منتهي",null,"منتهي"]
[null,null,null,null,null,null,null,null,null,null,null,null,null,null,"منتهي",null,"منتهي",null,"منتهي",null,"منتهي"]
[null,null,null,null,null,null,null,null,null,null,null,null,null,null,"منتهي",null,"منتهي",null,"منتهي",null,"منتهي"]
[null,null,null,null,null,null,null,null,null,null,null,null,null,null,"منتهي",null,"منتهي",null,"منتهي",null,"منتهي"]
[null,null,null,null,null,null,null,null,null,null,null,null,null,null,"منتهي",null,"منتهي",null,"منتهي",null,"منتهي"]
[null,null,null,null,null,null,null,null,null,null,null,null,null,null,"منتهي",null,"منتهي",null,"منتهي",null,"منتهي"]
[null,null,null,null,null,null,null,null,null,null,null,null,null,null,"منتهي",null,"منتهي",null,"منتهي",null,"منتهي"]
[null,null,null,null,null,null,null,null,null,null,null,null,null,null,"منتهي",null,"منتهي",null,"منتهي",null,"منتهي"]
[null,null,null,null,null,null,null,null,null,null,null,null,null,null,"منتهي",null,"منتهي",null,"منتهي",null,"منتهي"]
[null,null,null,null,null,null,null,null,null,null,null,null,null,null,"منتهي",null,"منتهي",null,"منتهي",null,"منتهي"]
[null,null,null,null,null,null,null,null,null,null,null,null,null,null,"منتهي",null,"منتهي",null,"منتهي",null,"منتهي"]
[null,null,null,null,null,null,null,null,null,null,null,null,null,null,{"$f":"IF(BF131<1,\"منتهي\",IF(BF131<30,\"تجديد\",IF(BF131=\"\",\"\",\"ساري\")))","v":"منتهي"},null,{"$f":"IF(BG131<1,\"منتهي\",IF(BG131<30,\"تجديد\",IF(BG131=\"\",\"\",\"ساري\")))","v":"منتهي"},null,{"$f":"IFERROR(IF(BH131<1,\"منتهي\",IF(BH131<30,\"تجديد\",\"ساري\")),\"\")","v":"منتهي"},null,{"$f":"IFERROR(IF(BH131<1,\"منتهي\",IF(BH131<30,\"تجديد\",\"ساري\")),\"\")","v":"منتهي"}]
[null,null,null,null,null,null,null,null,null,null,null,null,null,null,"منتهي",null,"منتهي",null,"منتهي",null,"منتهي"]
[null,null,null,null,null,null,null,null,null,null,null,null,null,null,"منتهي",null,"منتهي",null,"منتهي",null,"منتهي"]
[null,null,null,null,null,null,null,null,null,null,null,null,null,null,"منتهي",null,"منتهي",null,"منتهي",null,"منتهي"]
[null,null,null,null,null,null,null,null,null,null,null,null,null,null,"منتهي",null,"منتهي",null,"منتهي",null,"منتهي"]
[null,null,null,null,null,null,null,null,null,null,null,null,null,null,"منتهي",null,"منتهي",null,"منتهي",null,"منتهي"]
[null,null,null,null,null,null,null,null,null,null,null,null,null,null,"منتهي",null,"منتهي",null,"منتهي",null,"منتهي"]
[null,null,null,null,null,null,null,null,null,null,null,null,null,null,"منتهي",null,"منتهي",null,"منتهي",null,"منتهي"]
[null,null,null,null,null,null,null,null,null,null,null,null,null,null,"منتهي",null,"منتهي",null,"منتهي",null,"منتهي"]
[null,null,null,null,null,null,null,null,null,null,null,null,null,null,"منتهي",null,"منتهي",null,"منتهي",null,"منتهي"]
[null,null,null,null,null,null,null,null,null,null,null,null,null,null,"منتهي",null,"منتهي",null,"منتهي",null,"منتهي"]
[null,null,null,null,null,null,null,null,null,null,null,null,null,null,"منتهي",null,"منتهي",null,"منتهي",null,"منتهي"]
[null,null,null,null,null,null,null,null,null,null,null,null,null,null,"منتهي",null,"منتهي",null,"منتهي",null,"منتهي"]
[null,null,null,null,null,null,null,null,null,null,null,null,null,null,"منتهي",null,"منتهي",null,"منتهي",null,"منتهي"]
[null,null,null,null,null,null,null,null,null,null,null,null,null,null,"منتهي",null,"منتهي",null,"منتهي",null,"منتهي"]
[null,null,"Total",null,null,null,null,null,null,null,null,null,null,null,null,null,null,null,null,null,null,null,null,null,null,null,null,{"$f":"SUBTOTAL(103,Alldata[ملاحظات])","v":0}]
["مسئول الحركة / محمد عامر"]